fUSD/lending_fUSD_20240919
["ID","MTS","AMOUNT","RATE_DAILY","PERIOD"]
[338512624,1726711849364,-185.08815235,0.00014794,2]
[338512625,1726711850196,-1083.11461126,0.00014794,2]
[338512626,1726711850209,-153.68723639,0.00014794,2]
[338512627,1726711850228,-678.59963886,0.00014794,2]
[338512628,1726711850241,-246.49036114,0.00014794,2]
[338512629,1726711850252,-500.0,0.00014794,2]
[338512630,1726711850262,-128.05159848,0.00014794,2]
[338512631,1726711850296,-1293.83840152,0.00014794,2]
[338512632,1726711850306,-1032.73,0.00014794,2]
[338512633,1726711850316,-500.0,0.00014794,2]
[338512634,1726711850326,-151.48272914,0.00014794,2]
[338512635,1726711850341,-1270.40727086,0.00014794,2]
[338512636,1726711850351,-1032.73,0.00014794,2]
[338512637,1726711850360,-500.0,0.00014794,2]
[338512638,1726711850370,-1032.73,0.00014794,2]
[338512639,1726711850382,-856.19483432,0.00014794,2]
[338512640,1726711850399,-565.69516568,0.00014794,2]
[338512641,1726711850409,-276.05526359,0.00014794,2]
[338512642,1726711850419,-1032.86114489,0.00014794,2]
[338512643,1726711850429,-500.0,0.00014794,2]
[338512644,1726711850439,-357.89680152,0.00014794,2]
[338512645,1726711850451,-1421.89,0.00014794,2]
[338512646,1726711850466,-1421.89,0.00014794,2]
[338512647,1726711850476,-1421.89,0.00014794,2]
[338512648,1726711850485,-1421.89,0.00014794,2]
[338512649,1726711850495,-500.0,0.00014794,2]
[338512650,1726711850505,-1421.89,0.00014794,2]
[338512651,1726711850514,-500.0,0.00014794,2]
[338512652,1726711850524,-1421.89,0.00014794,2]
[338512653,1726711850533,-1421.89,0.00014794,2]
[338512654,1726711850543,-500.0,0.00014794,2]
[338512655,1726711850552,-500.0,0.00014794,2]
[338512656,1726711850561,-500.0,0.00014794,2]
[338512657,1726711850571,-357.16174936,0.00014794,2]
[338512658,1726711850604,-539.447999,0.00014794,2]
[338512659,1726711851494,-525.28025164,0.00014794,2]
[338512660,1726711851503,-271.45305249,0.00014794,2]
[338512661,1726711851512,-388.26669587,0.00014794,2]
[338512662,1726711851525,-111.73330413,0.00014794,2]
[338512663,1726711851535,-1421.89474033,0.00014794,2]
[338512664,1726711851544,-500.0,0.00014794,2]
[338512665,1726711851553,-500.0,0.00014794,2]
[338512666,1726711851563,-500.0,0.00014794,2]
[338512667,1726711851572,-500.0,0.00014794,2]
[338512668,1726711851582,-500.0,0.00014794,2]
[338512669,1726711851591,-500.0,0.00014794,2]
[338512670,1726711851600,-500.0,0.00014794,2]
[338512671,1726711851610,-500.0,0.00014794,2]
[338512672,1726711851619,-500.0,0.00014794,2]
[338512673,1726711851629,-500.0,0.00014794,2]
[338512674,1726711851638,-500.0,0.00014794,2]
[338512675,1726711851647,-500.0,0.00014794,2]
[338512676,1726711851657,-500.0,0.00014794,2]
[338512677,1726711851667,-500.0,0.00014794,2]
[338512678,1726711851677,-500.0,0.00014794,2]
[338512679,1726711851686,-500.0,0.00014794,2]
[338512680,1726711851695,-500.0,0.00014794,2]
[338512681,1726711851705,-500.0,0.00014794,2]
[338512682,1726711851716,-49.12253971,0.00014794,2]
[338512683,1726711851876,-450.87746029,0.00014794,2]
[338512684,1726711851885,-251.03253986,0.00014794,2]
[338512685,1726711851897,-248.96746014,0.00014794,2]
[338512686,1726711851909,-406.59785493,0.00014794,2]
[338512687,1726711851920,-93.40214507,0.00014794,2]
[338512688,1726711851930,-456.59785393,0.00014794,2]
[338512689,1726711853143,-43.40214607,0.00014794,2]
[338512690,1726711853153,-322.40254016,0.00014794,2]
[338512691,1726711853163,-78.81444067,0.00014794,2]
[338512692,1726711853193,-277.72958304,0.00014794,2]
[338512693,1726711853205,-143.45597629,0.00014794,2]
[338512694,1726711853215,-500.0,0.00014794,2]
[338512695,1726711853225,-500.0,0.00014794,2]
[338512696,1726711853234,-82.02404371,0.00014794,2]
[338512697,1726711853249,-498.00595629,0.00014794,2]
[338512698,1726711853258,-500.0,0.00014794,2]
[338512699,1726711853267,-500.0,0.00014794,2]
[338512700,1726711853276,-200.87059085,0.00014794,2]
[338512701,1726711853291,-379.15940915,0.00014794,2]
[338512702,1726711853299,-580.03,0.00014794,2]
[338512703,1726711853309,-500.0,0.00014794,2]
[338512704,1726711853318,-294.78500614,0.00014794,2]
[338512705,1726711853328,-234.13071915,0.00014794,2]
[338512706,1726711853338,-580.03,0.00014794,2]
[338512707,1726711853347,-580.03,0.00014794,2]
[338512708,1726711853356,-580.03,0.00014794,2]
[338512709,1726711853365,-580.03,0.00014794,2]
[338512710,1726711853374,-580.03,0.00014794,2]
[338512711,1726711853387,-580.03,0.00014794,2]
[338512712,1726711853400,-2478.51,0.00014794,2]
[338512713,1726711853411,-580.03,0.00014794,2]
[338512714,1726711853423,-2478.51,0.00014794,2]
[338512715,1726711853433,-580.03,0.00014794,2]
[338512716,1726711853442,-2478.51,0.00014794,2]
[338512717,1726711853452,-580.03,0.00014794,2]
[338512718,1726711853463,-580.03,0.00014794,2]
[338512719,1726711853473,-580.03,0.00014794,2]
[338512720,1726711853482,-2478.51,0.00014794,2]
[338512721,1726711853491,-580.03,0.00014794,2]
[338512722,1726711853500,-2478.51,0.00014794,2]
[338512723,1726711853509,-580.03,0.00014794,2]
[338512724,1726711853518,-2478.51,0.00014794,2]
[338512725,1726711853528,-580.03,0.00014794,2]
[338512726,1726711853538,-2478.51,0.00014794,2]
[338512727,1726711853547,-580.03,0.00014794,2]
[338512728,1726711853558,-2478.51,0.00014794,2]
[338512729,1726711853567,-929.53,0.00014794,2]
[338512730,1726711853576,-580.03,0.00014794,2]
[338512731,1726711853586,-2478.51,0.00014794,2]
[338512732,1726711853595,-580.03,0.00014794,2]
[338512733,1726711853604,-929.53,0.00014794,2]
[338512734,1726711853613,-2478.51,0.00014794,2]
[338512735,1726711853623,-580.03,0.00014794,2]
[338512736,1726711853632,-500.0,0.00014794,2]
[338512737,1726711853642,-929.53,0.00014794,2]
[338512738,1726711853651,-580.03,0.00014794,2]
[338512739,1726711853660,-500.0,0.00014794,2]
[338512740,1726711853669,-929.53,0.00014794,2]
[338512741,1726711853679,-580.03,0.00014794,2]
[338512742,1726711853689,-500.0,0.00014794,2]
[338512743,1726711853698,-929.53,0.00014794,2]
[338512744,1726711853707,-929.53,0.00014794,2]
[338512745,1726711853728,-500.0,0.00014794,2]
[338512746,1726711853737,-500.0,0.00014794,2]
[338512747,1726711853746,-580.16252229,0.00014794,2]
[338512748,1726711853756,-929.53,0.00014794,2]
[338512749,1726711853765,-500.0,0.00014794,2]
[338512750,1726711853774,-500.0,0.00014794,2]
[338512751,1726711853783,-929.53,0.00014794,2]
[338512752,1726711853792,-500.0,0.00014794,2]
[338512753,1726711853801,-500.0,0.00014794,2]
[338512754,1726711853810,-929.53,0.00014794,2]
[338512755,1726711853819,-500.0,0.00014794,2]
[338512756,1726711853828,-500.0,0.00014794,2]
[338512757,1726711853837,-929.53,0.00014794,2]
[338512758,1726711853846,-500.0,0.00014794,2]
[338512759,1726711853855,-929.53,0.00014794,2]
[338512760,1726711853864,-500.0,0.00014794,2]
[338512761,1726711853874,-929.53,0.00014794,2]
[338512762,1726711853883,-500.0,0.00014794,2]
[338512763,1726711853892,-929.53,0.00014794,2]
[338512764,1726711853901,-500.0,0.00014794,2]
[338512765,1726711853910,-929.53,0.00014794,2]
[338512766,1726711853918,-442.35421211,0.00014794,2]
[338512767,1726711853927,-500.0,0.00014794,2]
[338512768,1726711853936,-929.53,0.00014794,2]
[338512769,1726711853945,-500.0,0.00014794,2]
[338512770,1726711853954,-929.53,0.00014794,2]
[338512771,1726711853965,-500.0,0.00014794,2]
[338512772,1726711853974,-929.53,0.00014794,2]
[338512773,1726711853983,-500.0,0.00014794,2]
[338512774,1726711853992,-929.53,0.00014794,2]
[338512775,1726711854001,-500.0,0.00014794,2]
[338512776,1726711854010,-929.53,0.00014794,2]
[338512777,1726711854019,-500.0,0.00014794,2]
[338512778,1726711854028,-500.0,0.00014794,2]
[338512779,1726711854037,-929.53,0.00014794,2]
[338512780,1726711854047,-500.0,0.00014794,2]
[338512781,1726711854056,-929.53,0.00014794,2]
[338512782,1726711854065,-929.53,0.00014794,2]
[338512783,1726711854074,-500.0,0.00014794,2]
[338512784,1726711854083,-929.53,0.00014794,2]
[338512785,1726711854092,-500.0,0.00014794,2]
[338512786,1726711854101,-929.66440319,0.00014794,2]
[338512787,1726711854110,-500.0,0.00014794,2]
[338512788,1726711854120,-1776.59,0.00014794,2]
[338512789,1726711854129,-618.02283953,0.00014794,2]
[338512790,1726711854138,-1776.59,0.00014794,2]
[338512791,1726711854258,-1776.59,0.00014794,2]
[338512792,1726711854277,-1776.59,0.00014794,2]
[338512793,1726711854287,-1776.59,0.00014794,2]
[338512794,1726711854296,-1776.59,0.00014794,2]
[338512795,1726711854306,-1776.59,0.00014794,2]
[338512796,1726711854315,-1776.59,0.00014794,2]
[338512797,1726711854325,-1776.59,0.00014794,2]
[338512798,1726711854334,-1776.59,0.00014794,2]
[338512799,1726711854343,-135.30738226,0.00014794,2]
[338512800,1726711880172,500.0,0.00011154,2]
[338512801,1726712031742,200.0,0.00023999,120]
[338512802,1726712064945,151.68,0.00010959,2]
[338512803,1726712223928,335.37,0.00011991,2]
[338512805,1726712445951,2000.0,0.00024,120]
[338512806,1726712446917,2000.0,0.00024,120]
[338512807,1726712447591,2000.0,0.00024,120]
[338512808,1726712448303,2000.0,0.00024,120]
[338512809,1726712448919,2000.0,0.00024,120]
[338512810,1726712449694,2000.0,0.00024,120]
[338512811,1726712450232,2000.0,0.00024,120]
[338512812,1726712450885,2000.0,0.00024,120]
[338512813,1726712451512,2000.0,0.00024,120]
[338512814,1726712452253,2000.0,0.00024,120]
[338512815,1726712458463,3802.73,0.00024,120]
[338512816,1726712469621,500.0,0.00024,120]
[338512817,1726712470096,500.0,0.00024,120]
[338512818,1726712470592,500.0,0.00024,120]
[338512819,1726712471167,500.0,0.00024,120]
[338512820,1726712471688,500.0,0.00024,120]
[338512821,1726712472630,500.0,0.00024,120]
[338512822,1726712473026,500.0,0.00024,120]
[338512823,1726712473480,500.0,0.00024,120]
[338512824,1726712474442,500.0,0.00024,120]
[338512825,1726712474900,500.0,0.00024,120]
[338512826,1726712475377,500.0,0.00024,120]
[338512827,1726712475836,500.0,0.00024,120]
[338512828,1726712476295,500.0,0.00024,120]
[338512829,1726712477256,500.0,0.00024,120]
[338512830,1726712477489,500.0,0.00024,120]
[338512831,1726712477827,500.0,0.00024,120]
[338512832,1726712478260,500.0,0.00024,120]
[338512833,1726712478697,500.0,0.00024,120]
[338512834,1726712479147,500.0,0.00024,120]
[338512835,1726712479625,500.0,0.00024,120]
[338512836,1726712480198,500.0,0.00024,120]
[338512837,1726712480698,500.0,0.00024,120]
[338512838,1726712481035,500.0,0.00024,120]
[338512839,1726712481503,500.0,0.00024,120]
[338512840,1726712481956,500.0,0.00024,120]
[338512841,1726712482396,500.0,0.00024,120]
[338512842,1726712482861,500.0,0.00024,120]
[338512843,1726712483306,500.0,0.00024,120]
[338512844,1726712483738,500.0,0.00024,120]
[338512845,1726712484487,500.0,0.00024,120]
[338512846,1726712484686,500.0,0.00024,120]
[338512847,1726712485116,500.0,0.00024,120]
[338512848,1726712485562,500.0,0.00024,120]
[338512849,1726712486008,500.0,0.00024,120]
[338512850,1726712486528,500.0,0.00024,120]
[338512851,1726712486924,500.0,0.00024,120]
[338512852,1726712487891,500.0,0.00024,120]
[338512853,1726712488010,500.0,0.00024,120]
[338512854,1726712488253,500.0,0.00024,120]
[338512855,1726712488674,500.0,0.00024,120]
[338512856,1726712489115,614.57724285,0.00024,120]
[338512858,1726712637055,200.0,0.00023999,120]
[338512859,1726712643747,225.35912535,0.00024,120]
[338512869,1726712923006,365.22,0.00011563,2]
[338512889,1726713032315,-927.587728,0.00012805,2]
[338512890,1726713032325,-117.85227208,0.0001287,2]
[338512897,1726713038137,-4241.88089123,0.0001287,2]
[338512899,1726713038251,-766.51726521,0.0001287,2]
[338512900,1726713038263,-259.8301691,0.0001287,2]
[338512901,1726713038272,-151.93880487,0.000129,2]
[338512902,1726713038281,-363.28489282,0.000129,2]
[338512903,1726713038351,-1098.44899434,0.000129,2]
[338512904,1726713038361,-154.53165967,0.00012957,2]
[338512981,1726713040124,-145.46834033,0.00012957,2]
[338512982,1726713040134,-412.22,0.00012958,2]
[338512983,1726713040144,-14315.70983429,0.00012958,2]
[338512984,1726713040155,-5338.45319096,0.00012958,2]
[338512985,1726713040249,-343.40074201,0.00012958,2]
[338512986,1726713040373,-3902.43623274,0.00012958,2]
[338512987,1726713040383,-154.22,0.0001299,2]
[338512988,1726713040392,-154.22,0.0001299,2]
[338512989,1726713040402,-154.22,0.0001299,2]
[338512990,1726713040411,-154.22,0.0001299,2]
[338512991,1726713040420,-22359.11956726,0.00013,2]
[338513377,1726713044852,-7782.71282825,0.00013,2]
[338513379,1726713044862,-224695.33915879,0.00013,2]
[338513505,1726713046264,-2859.89930432,0.00013,2]
[338513507,1726713046276,-4960.51153717,0.00013,2]
[338513509,1726713046287,-7818.3596,0.00013,2]
[338513511,1726713046299,-417.47216,0.00013,2]
[338513513,1726713046310,-281.00881241,0.00013,2]
[338513516,1726713046324,-636262.64447601,0.00013,2]
[338513521,1726713046371,-520.38152683,0.00013,2]
[338513523,1726713046382,-2990.50036596,0.00013,2]
[338513525,1726713046394,-612.67,0.00013,2]
[338513527,1726713046405,-365.88264285,0.00013,2]
[338513529,1726713046416,-172865.52787033,0.00013,2]
[338513531,1726713046427,-252.32,0.00013,2]
[338513538,1726713046482,-3795.64476265,0.00013,2]
[338513540,1726713046493,-273.72011597,0.00013,2]
[338513542,1726713046505,-12350.31781265,0.00013,2]
[338513550,1726713046587,-1102.43613394,0.00013,2]
[338513920,1726713160199,200.0,0.00013,120]
[338513921,1726713199950,932.9343109,0.00022,60]
[338513923,1726713208657,-270.84677264,0.000129,2]
[338513924,1726713208678,-327.13282787,0.000129,2]
[338513925,1726713208772,-142.02039949,0.000129,2]
[338513926,1726713240850,200.0,0.00023999,120]
[338513928,1726713321250,4000.0,0.00024,120]
[338513929,1726713322402,4000.0,0.00024,120]
[338513930,1726713323393,4000.0,0.00024,120]
[338513931,1726713324174,4000.0,0.00024,120]
[338513932,1726713324931,4000.0,0.00024,120]
[338513958,1726713527921,-295.20355401,0.00015,30]
[338513962,1726713548256,-590.40710801,0.00015,20]
[338513963,1726713548278,-295.203554,0.00015,25]
[338513966,1726713582836,362.15,0.0001142,2]
[338513967,1726713583274,500.0,0.00011164,2]
[338513969,1726713592065,-500.0,0.00014794,15]
[338513970,1726713592086,-500.0,0.00014794,15]
[338513971,1726713592110,-500.0,0.00014794,15]
[338513972,1726713592131,-500.0,0.00014794,15]
[338513973,1726713592152,-500.0,0.00014794,15]
[338513974,1726713592173,-500.0,0.00014794,15]
[338513975,1726713592194,-500.0,0.00014794,15]
[338513976,1726713592215,-500.0,0.00014794,15]
[338513977,1726713592236,-500.0,0.00014794,15]
[338513978,1726713592257,-500.0,0.00014794,15]
[338513979,1726713592277,-500.0,0.00014794,15]
[338513980,1726713592300,-500.0,0.00014794,15]
[338513981,1726713592321,-500.0,0.00014794,15]
[338513982,1726713592341,-500.0,0.00014794,15]
[338513983,1726713592362,-500.0,0.00014794,15]
[338513984,1726713592386,-500.0,0.00014794,15]
[338513985,1726713592410,-500.0,0.00014794,15]
[338513986,1726713592433,-500.0,0.00014794,15]
[338513987,1726713592457,-500.0,0.00014794,15]
[338513988,1726713592479,-500.0,0.00014794,15]
[338513989,1726713592503,-500.0,0.00014794,15]
[338513990,1726713592526,-500.0,0.00014794,15]
[338513991,1726713592548,-221.28450051,0.00014794,15]
[338513995,1726713667019,-146725.3921526,0.0001497,15]
[338513996,1726713667042,-1800.0,0.00015,16]
[338513997,1726713667067,-590.40710801,0.00015,15]
[338513998,1726713667496,500.0,0.00024,120]
[338513999,1726713667643,500.0,0.00024,120]
[338514000,1726713668073,500.0,0.00024,120]
[338514001,1726713668677,500.0,0.00024,120]
[338514002,1726713669145,500.0,0.00024,120]
[338514003,1726713669701,500.0,0.00024,120]
[338514004,1726713670095,500.0,0.00024,120]
[338514005,1726713670546,500.0,0.00024,120]
[338514006,1726713671041,500.0,0.00024,120]
[338514007,1726713671571,500.0,0.00024,120]
[338514008,1726713672007,500.0,0.00024,120]
[338514009,1726713672495,500.0,0.00024,120]
[338514010,1726713672931,500.0,0.00024,120]
[338514011,1726713673467,500.0,0.00024,120]
[338514012,1726713673882,500.0,0.00024,120]
[338514013,1726713674312,500.0,0.00024,120]
[338514014,1726713675351,500.0,0.00024,120]
[338514015,1726713675464,500.0,0.00024,120]
[338514016,1726713675666,500.0,0.00024,120]
[338514017,1726713676797,500.0,0.00024,120]
[338514018,1726713677278,500.0,0.00024,120]
[338514019,1726713679881,500.0,0.00024,120]
[338514020,1726713680467,500.0,0.00024,120]
[338514021,1726713680971,500.0,0.00024,120]
[338514022,1726713681410,500.0,0.00024,120]
[338514023,1726713681829,500.0,0.00024,120]
[338514024,1726713682268,500.0,0.00024,120]
[338514025,1726713682717,500.0,0.00024,120]
[338514026,1726713683157,500.0,0.00024,120]
[338514027,1726713683626,500.0,0.00024,120]
[338514028,1726713684204,500.0,0.00024,120]
[338514029,1726713684807,500.0,0.00024,120]
[338514030,1726713685173,500.0,0.00024,120]
[338514031,1726713686055,500.0,0.00024,120]
[338514032,1726713686161,500.0,0.00024,120]
[338514033,1726713686593,500.0,0.00024,120]
[338514034,1726713687102,500.0,0.00024,120]
[338514035,1726713687552,500.0,0.00024,120]
[338514036,1726713688010,500.0,0.00024,120]
[338514037,1726713688507,500.0,0.00024,120]
[338514038,1726713688983,614.57724285,0.00024,120]
[338514039,1726713700208,-1500.0,0.00014999,14]
[338514040,1726713700233,-5196.46976108,0.00015,14]
[338514041,1726713700254,-65161.5905569,0.00015,14]
[338514042,1726713701856,5000.0,0.00024,120]
[338514043,1726713817385,590.40710801,0.00015,20]
[338514044,1726713818370,295.203554,0.00015,25]
[338514045,1726713818810,295.20355401,0.00015,30]
[338514046,1726713839793,200.0,0.00023999,120]
[338514047,1726713875879,421.86233158,0.00012652,2]
[338514048,1726713904918,167.0,0.00024,120]
[338514049,1726713947570,854.64,0.00012495,2]
[338514050,1726713972717,250.0,0.00012521,2]
[338514051,1726713973984,203.36049905,0.00024,120]
[338514052,1726713977458,1050.0,0.00011,2]
[338514054,1726714017805,15154.21,0.00012521,2]
[338514055,1726714035214,284.21,0.00012486,2]
[338514056,1726714052526,156.32,0.00010959,2]
[338514057,1726714139905,1809.5,0.00012495,2]
[338514058,1726714174368,150.0,0.00024,120]
[338514062,1726714232315,-925.1775,0.000128,2]
[338514075,1726714232547,-1150.4,0.000128,2]
[338514076,1726714232559,-1263.2157,0.000128,2]
[338514077,1726714232569,-250.0,0.00012868,2]
[338514078,1726714232579,-596.8,0.00012886,2]
[338514079,1726714232589,-192.9621418,0.000129,2]
[338514080,1726714232600,-2295.73379703,0.000129,2]
[338514081,1726714232610,-150.0,0.00012932,2]
[338514082,1726714232620,-184.44,0.00012964,2]
[338514083,1726714232630,-500.0,0.00012973,2]
[338514084,1726714232639,-26.74414523,0.0001299,2]
[338514093,1726714238348,-128.40585477,0.0001299,2]
[338514094,1726714238359,-155.15,0.0001299,2]
[338514095,1726714238368,-434.223,0.00012999,2]
[338514096,1726714238378,-150.0,0.00012999,2]
[338514097,1726714238388,-199.9999,0.00012999,2]
[338514098,1726714238398,-14198.98550594,0.00013,2]
[338514099,1726714238550,-5119.54709335,0.00013,2]
[338514116,1726714240488,-2662340.06027178,0.00013,2]
[338514117,1726714240498,-131306.80800291,0.00013,2]
[338514118,1726714240509,-150.99,0.00013,2]
[338514119,1726714240518,-4152.6,0.00013,2]
[338514120,1726714240527,-499.99,0.00013,2]
[338514121,1726714240537,-1137.31,0.00013,2]
[338514122,1726714240546,-150.99,0.00013,2]
[338514123,1726714240555,-499.99,0.00013,2]
[338514124,1726714240565,-153.94,0.00013025,2]
[338514125,1726714240574,-299.99,0.00013025,2]
[338514126,1726714240584,-179.99,0.00013025,2]
[338514127,1726714240593,-200.0,0.00013135,2]
[338514128,1726714240603,-416.48150783,0.00013166,2]
[338514129,1726714240612,-403.2,0.00013261,2]
[338514130,1726714240621,-250.0,0.00013271,2]
[338514131,1726714240631,-509.18,0.00013277,2]
[338514132,1726714240641,-606.21,0.00013306,2]
[338514133,1726714240651,-362.15,0.00013684,2]
[338514134,1726714240660,-152.97,0.00013699,2]
[338514135,1726714240670,-2295.73379702,0.00013797,2]
[338514136,1726714240680,-287.14,0.000138,2]
[338514137,1726714240690,-3946.2551037,0.000138,2]
[338514138,1726714240700,-176.8589443,0.00013888,2]
[338514140,1726714240709,-49035.44240077,0.00013888,2]
[338514142,1726714240723,-500.0,0.00013904,2]
[338514143,1726714240732,-284.21,0.00014047,2]
[338514145,1726714240741,-152.97,0.00014155,2]
[338514147,1726714240750,-501.79664669,0.00014342,2]
[338514149,1726714240760,-596.8,0.00014497,2]
[338514151,1726714240769,-737.68,0.00014518,2]
[338514153,1726714240778,-412.22,0.00014578,2]
[338514155,1726714240787,-24889.31833526,0.00014594,2]
[338514157,1726714240797,-126067.7373,0.00014594,2]
[338514159,1726714240807,-236.0216,0.00014594,2]
[338514161,1726714240816,-877.510523,0.000146,2]
[338514163,1726714240826,-152.97,0.00014612,2]
[338514165,1726714240835,-225.0,0.0001462,2]
[338514167,1726714240846,-500.0,0.00014675,2]
[338514169,1726714240855,-500.0,0.00014675,2]
[338514171,1726714240865,-2000.0,0.00014676,2]
[338514173,1726714240874,-500.0,0.00014676,2]
[338514174,1726714240884,-500.0,0.00014676,2]
[338514176,1726714240893,-500.0,0.00014676,2]
[338514179,1726714240903,-192.96214179,0.00014694,2]
[338514180,1726714240913,-2295.73379702,0.00014694,2]
[338514182,1726714240923,-225.0,0.0001475,2]
[338514184,1726714240932,-240.7373266,0.00014761,2]
[338514186,1726714240941,-500.0,0.00014773,2]
[338514188,1726714240951,-737.68,0.00014792,2]
[338514190,1726714240965,-253.98176493,0.00014793,2]
[338514192,1726714240974,-294.59248936,0.00014794,2]
[338514194,1726714240984,-2689.9,0.00014794,2]
[338514196,1726714240994,-2689.9,0.00014794,2]
[338514198,1726714241003,-2689.9,0.00014794,2]
[338514200,1726714241012,-2689.9,0.00014794,2]
[338514202,1726714241022,-2689.9,0.00014794,2]
[338514204,1726714241031,-2689.9,0.00014794,2]
[338514206,1726714241041,-2689.9,0.00014794,2]
[338514207,1726714241050,-2689.9,0.00014794,2]
[338514209,1726714241059,-2689.9,0.00014794,2]
[338514211,1726714241069,-2689.9,0.00014794,2]
[338514213,1726714241083,-2689.9,0.00014794,2]
[338514216,1726714241092,-2689.9,0.00014794,2]
[338514218,1726714241102,-2689.9,0.00014794,2]
[338514220,1726714241111,-2689.9,0.00014794,2]
[338514221,1726714241122,-2689.9,0.00014794,2]
[338514223,1726714241131,-2689.9,0.00014794,2]
[338514225,1726714241140,-2689.9,0.00014794,2]
[338514227,1726714241151,-2689.9,0.00014794,2]
[338514229,1726714241160,-2689.9,0.00014794,2]
[338514231,1726714241170,-2689.9,0.00014794,2]
[338514233,1726714241182,-2689.9,0.00014794,2]
[338514235,1726714241192,-2689.9,0.00014794,2]
[338514237,1726714241201,-2689.95542822,0.00014794,2]
[338514239,1726714241212,-2589.9,0.00014794,2]
[338514241,1726714241225,-3197.22,0.00014794,2]
[338514242,1726714241241,-3197.22,0.00014794,2]
[338514244,1726714241252,-3197.22,0.00014794,2]
[338514247,1726714241261,-3197.22,0.00014794,2]
[338514248,1726714241270,-3197.22,0.00014794,2]
[338514249,1726714241280,-3197.22,0.00014794,2]
[338514250,1726714241289,-3197.22,0.00014794,2]
[338514251,1726714241299,-3197.22,0.00014794,2]
[338514252,1726714241308,-3197.22,0.00014794,2]
[338514253,1726714241318,-3197.22,0.00014794,2]
[338514254,1726714241327,-3197.22,0.00014794,2]
[338514255,1726714241337,-3197.22,0.00014794,2]
[338514256,1726714241347,-3197.22,0.00014794,2]
[338514257,1726714241356,-3197.22,0.00014794,2]
[338514258,1726714241365,-3197.22,0.00014794,2]
[338514259,1726714241376,-3197.22,0.00014794,2]
[338514260,1726714241386,-3197.22,0.00014794,2]
[338514261,1726714241395,-3197.22,0.00014794,2]
[338514262,1726714241405,-3197.22,0.00014794,2]
[338514263,1726714241415,-3197.22,0.00014794,2]
[338514264,1726714241424,-3197.22,0.00014794,2]
[338514265,1726714241434,-3197.22,0.00014794,2]
[338514266,1726714241444,-3197.22,0.00014794,2]
[338514268,1726714241454,-3197.29964624,0.00014794,2]
[338514269,1726714241470,-500.0,0.00014794,2]
[338514271,1726714241479,-500.0,0.00014794,2]
[338514273,1726714241488,-500.0,0.00014794,2]
[338514275,1726714241498,-500.0,0.00014794,2]
[338514277,1726714241507,-500.0,0.00014794,2]
[338514279,1726714241517,-567.76515135,0.00014794,2]
[338514281,1726714241527,-500.0,0.00014794,2]
[338514283,1726714241536,-426.443414,0.00014794,2]